[Event "RUS-ch Rapid Men 2018"]
[Site "Sochi"]
[Date "2018.10.06"]
[Round "11"]
[White "Sychev, Klementy"]
[Black "Apryshko, Gleb"]
[Result "1-0"]
[ECO "B06"]
[WhiteElo "2534"]
[BlackElo "2399"]
[Annotator "ChessBase"]
[PlyCount "93"]
[EventDate "2018.10.05"]
[EventType "swiss"]
[EventCountry "RUS"]
[SourceTitle "playchess.com"]
[Source "ChessBase"]
[SourceQuality "1"]
[TimeControl "900+10"]

1. e4 {[%emt 0:00:00]} g6 {[%emt 0:00:00]} 2. d4 {[%emt 0:00:00]} Bg7 {[%emt 0:00:00]} 3. c4 {[%emt 0:00:11]} Nc6 {[%emt 0:00:00]} 4. Ne2 {[%emt 0:01:14]} d6 {[%emt 0:00:10]} 5. Nbc3 {[%emt 0:00:04]} e5 {[%emt 0:00:25]} 6. d5 {[%emt 0:00:27]} Nce7 {[%emt 0:04:20]} 7. Be3 {[%emt 0:00:02]} f5 {[%emt 0:00:01]} 8. f3 Nf6 9. h3 {[%emt 0:01:17]} c6 {[%emt 0:02:52]} 10. g4 {[%emt 0:01:25]} cxd5 {[%emt 0:01:29]} 11. cxd5 {[%emt 0:00:02]} Bd7 {[%emt 0:01:26]} 12. Nc1 {[%emt 0:01:51]} O-O {[%emt 0:01:22]} 13. Bg2 {[%emt 0:01:57]} b5 {[%emt 0:01:00]} 14. a3 {[%emt 0:00:05]} a5 {[%emt 0:00:01]} 15. O-O {[%emt 0:00:22]} b4 {[%emt 0:01:36]} 16. N3e2 {[%emt 0:00:30]} Bb5 {[%emt 0:00:17]} 17. Qd2 {[%emt 0:00:09]} Qd7 {[%emt 0:00:35]} 18. axb4 {[%emt 0:00:30]} axb4 {[%emt 0:00:02]} 19. Nd3 {[%emt 0:00:03]} Bc4 {[%emt 0:01:06]} 20. b3 {[%emt 0:00:41]} Bxb3 {[%emt 0:00:13]} 21. Nxb4 {[%emt 0:00:02]} Rfc8 {[%emt 0:01:05]} 22. Rfb1 Rxa1 {[%emt 0:00:02]} 23. Rxa1 {[%emt 0:01:11]} Bc4 {[%emt 0:00:18]} 24. Ra7 {[%emt 0:00:40]} Rc7 {[%emt 0:00:06]} 25. Rxc7 {[%emt 0:00:24]} Qxc7 {[%emt 0:00:00]} 26. Qc2 {[%emt 0:00:13]} Ne8 {[%emt 0:00:33]} 27. Bf1 {[%emt 0:00:27]} Bb5 {[%emt 0:00:19]} 28. Qxc7 {[%emt 0:00:07]} Nxc7 {[%emt 0:00:01]} 29. Nc3 {[%emt 0:00:02]} Bxf1 {[%emt 0:00:03]} 30. Kxf1 {[%emt 0:00:01]} Nc8 {[%emt 0:00:17]} 31. Ke2 {[%emt 0:01:15]} Kf7 {[%emt 0:00:10]} 32. Kd3 fxg4 {[%emt 0:00:17]} 33. fxg4 {[%emt 0:00:16]} Bf6 34. Kc4 {[%emt 0:00:44]} Ke8 {[%emt 0:00:04]} 35. Nb5 {[%emt 0:00:50]} Kd7 {[%emt 0:00:06]} 36. Nc6 {[%emt 0:01:08]} Bh4 {[%emt 0:00:24]} 37. Nxc7 {[%emt 0:02:29]} Kxc7 {[%emt 0:00:00]} 38. Kb5 Kb7 39. Bd2 {[%emt 0:00:36]} Nb6 {[%emt 0:00:09]} 40. Ba5 {[%emt 0:00:05]} Nc8 {[%emt 0:00:17]} 41. Bd8 {[%emt 0:00:08]} Bf2 {[%emt 0:00:24]} 42. Na5+ {[%emt 0:00:04]} Kb8 {[%emt 0:00:09]} 43. Kc6 {[%emt 0:00:02]} Bc5 {[%emt 0:00:17]} 44. Bc7+ {[%emt 0:00:08]} Ka7 {[%emt 0:00:09]} 45. Nc4 {[%emt 0:00:01]} Ne7+ {[%emt 0:00:06]} 46. Kd7 {[%emt 0:00:01]} Kb7 {[%emt 0:00:18]} 47. Bxd6 {[%emt 0:00:14]} 1-0

[Event "RUS-ch Rapid Men 2018"]
[Site "Sochi"]
[Date "2018.10.06"]
[Round "11"]
[White "Triapishko, Alexandr"]
[Black "Malakhov, Igor"]
[Result "1/2-1/2"]
[ECO "A06"]
[WhiteElo "2508"]
[BlackElo "2423"]
[Annotator "ChessBase"]
[PlyCount "155"]
[EventDate "2018.10.05"]
[EventType "swiss"]
[EventCountry "RUS"]
[SourceTitle "playchess.com"]
[Source "ChessBase"]
[SourceQuality "1"]
[TimeControl "900+10"]

1. Nf3 {[%emt 0:00:00]} d5 {[%emt 0:00:00]} 2. g3 {[%emt 0:00:01]} c6 {[%emt 0:00:05]} 3. Bg2 {[%emt 0:00:02]} Bg4 {[%emt 0:00:02]} 4. c4 {[%emt 0:00:23]} Bxf3 {[%emt 0:00:02]} 5. Bxf3 {[%emt 0:00:04]} e6 {[%emt 0:00:01]} 6. Qc2 {[%emt 0:01:46]} Nd7 {[%emt 0:00:05]} 7. Bg2 {[%emt 0:01:04]} Ngf6 {[%emt 0:00:03]} 8. d3 {[%emt 0:00:19]} Bc5 {[%emt 0:00:09]} 9. Nc3 {[%emt 0:01:23]} O-O {[%emt 0:00:07]} 10. O-O {[%emt 0:00:18]} d4 {[%emt 0:00:39]} 11. Na4 {[%emt 0:01:57]} Be7 {[%emt 0:00:48]} 12. b4 {[%emt 0:01:01]} Bxb4 {[%emt 0:04:05]} 13. Rb1 {[%emt 0:00:08]} Qe7 {[%emt 0:00:12]} 14. Qb2 {[%emt 0:01:00]} a5 {[%emt 0:00:51]} 15. Qxd4 {[%emt 0:02:13]} Rab8 {[%emt 0:00:01]} 16. Bb2 {[%emt 0:00:56]} b5 {[%emt 0:00:26]} 17. Nc3 {[%emt 0:02:06]} Rfc8 {[%emt 0:00:15]} 18. Ne4 {[%emt 0:00:28]} Ne8 {[%emt 0:00:57]} 19. cxb5 {[%emt 0:00:50]} cxb5 {[%emt 0:00:21]} 20. Rfc1 {[%emt 0:00:08]} f5 {[%emt 0:01:13]} 21. Nc3 {[%emt 0:00:28]} Bc5 {[%emt 0:00:54]} 22. Qf4 {[%emt 0:00:07]} Nef6 {[%emt 0:00:28]} 23. e3 {[%emt 0:00:58]} Bd6 {[%emt 0:00:33]} 24. Qf3 {[%emt 0:00:19]} Ba3 {[%emt 0:00:01]} 25. Qe2 {[%emt 0:00:21]} Bxb2 {[%emt 0:00:05]} 26. Qxb2 {[%emt 0:00:02]} b4 {[%emt 0:00:37]} 27. Na4 {[%emt 0:00:04]} Qd6 {[%emt 0:00:07]} 28. Qb3 {[%emt 0:00:31]} Kf7 {[%emt 0:00:18]} 29. Kf1 {[%emt 0:00:20]} Ke7 {[%emt 0:00:13]} 30. Ke2 {[%emt 0:00:04]} Ng4 {[%emt 0:00:29]} 31. h3 {[%emt 0:00:12]} Nge5 {[%emt 0:00:01]} 32. f4 {[%emt 0:00:17]} Nf7 {[%emt 0:00:03]} 33. Rc4 {[%emt 0:00:12]} Rxc4 34. Qxc4 {[%emt 0:00:01]} Nb6 {[%emt 0:00:41]} 35. Nxb6 {[%emt 0:00:04]} Qxb6 {[%emt 0:00:01]} 36. Rc1 {[%emt 0:00:14]} Nd6 {[%emt 0:00:18]} 37. Qc7+ {[%emt 0:00:11]} Qxc7 {[%emt 0:00:01]} 38. Rxc7+ {[%emt 0:00:02]} Kf6 {[%emt 0:00:01]} 39. Ra7 {[%emt 0:00:14]} Rb5 {[%emt 0:00:16]} 40. Bc6 {[%emt 0:00:23]} b3 {[%emt 0:01:02]} 41. axb3 {[%emt 0:00:07]} Rxb3 {[%emt 0:00:01]} 42. Rxa5 {[%emt 0:00:07]} Rb2+ {[%emt 0:00:01]} 43. Kf3 {[%emt 0:00:04]} Rb3 {[%emt 0:00:00]} 44. Ke2 {[%emt 0:00:11]} Rb2+ {[%emt 0:00:01]} 45. Ke1 {[%emt 0:00:18]} Rb1+ {[%emt 0:00:04]} 46. Kf2 {[%emt 0:00:02]} Rb2+ {[%emt 0:00:01]} 47. Kf1 {[%emt 0:00:06]} Rb3 {[%emt 0:00:10]} 48. Ke2 {[%emt 0:00:03]} Rb2+ {[%emt 0:00:01]} 49. Kd1 {[%emt 0:00:19]} Rb1+ {[%emt 0:00:02]} 50. Kc2 {[%emt 0:00:24]} Rg1 {[%emt 0:00:01]} 51. e4 {[%emt 0:00:08]} fxe4 {[%emt 0:00:50]} 52. dxe4 {[%emt 0:00:01]} Nc4 {[%emt 0:00:00]} 53. Ra6 {[%emt 0:00:28]} Rxg3 {[%emt 0:00:34]} 54. Bd7 {[%emt 0:00:07]} Ke7 {[%emt 0:00:52]} 55. Bxe6 {[%emt 0:00:07]} Nd6 {[%emt 0:00:01]} 56. Bd5 {[%emt 0:00:08]} Nb5 {[%emt 0:00:31]} 57. Rb6 {[%emt 0:00:23]} Nd4+ {[%emt 0:00:10]} 58. Kd2 {[%emt 0:00:02]} Rxh3 {[%emt 0:00:14]} 59. e5 {[%emt 0:00:07]} g5 {[%emt 0:00:36]} 60. Rb7+ {[%emt 0:00:08]} Kd8 {[%emt 0:00:01]} 61. fxg5 {[%emt 0:00:20]} Rg3 {[%emt 0:00:09]} 62. Rb8+ {[%emt 0:00:13]} Kc7 {[%emt 0:00:12]} 63. Rb7+ {[%emt 0:00:01]} Kd8 {[%emt 0:00:03]} 64. Rb8+ {[%emt 0:00:07]} Kc7 {[%emt 0:00:00]} 65. Rb4 {[%emt 0:00:11]} Nf3+ {[%emt 0:00:39]} 66. Bxf3 Rxf3 {[%emt 0:00:01]} 67. Rh4 {[%emt 0:00:29]} Kd7 {[%emt 0:00:32]} 68. Ke2 {[%emt 0:00:16]} Rg3 {[%emt 0:00:01]} 69. Rxh7+ {[%emt 0:00:05]} Ke6 {[%emt 0:00:02]} 70. Rg7 {[%emt 0:00:11]} Kxe5 71. Kf2 Rg4 {[%emt 0:00:26]} 72. Kf3 {[%emt 0:00:01]} Rg1 {[%emt 0:00:01]} 73. Kf2 {[%emt 0:00:02]} Rg4 {[%emt 0:00:01]} 74. Kf3 {[%emt 0:00:02]} Rg1 {[%emt 0:00:00]} 75. Rg8 {[%emt 0:00:16]} Kf5 {[%emt 0:00:17]} 76. Rf8+ {[%emt 0:00:03]} Kg6 {[%emt 0:00:01]} 77. Rg8+ {[%emt 0:00:02]} Kf7 {[%emt 0:00:09]} 78. Ke4 1/2-1/2

[Event "RUS-ch Rapid Men 2018"]
[Site "Sochi"]
[Date "2018.10.06"]
[Round "11"]
[White "Gabrielian, Artur"]
[Black "Pridorozhni, Aleksei"]
[Result "1/2-1/2"]
[ECO "B40"]
[WhiteElo "2499"]
[BlackElo "2574"]
[Annotator "ChessBase"]
[PlyCount "188"]
[EventDate "2018.10.05"]
[EventType "swiss"]
[EventCountry "RUS"]
[SourceTitle "playchess.com"]
[Source "ChessBase"]
[SourceQuality "1"]
[TimeControl "900+10"]

1. e4 {[%emt 0:00:00]} c5 {[%emt 0:00:00]} 2. Nf3 {[%emt 0:00:00]} e6 {[%emt 0:00:00]} 3. g3 {[%emt 0:00:00]} d5 {[%emt 0:00:00]} 4. exd5 {[%emt 0:00:00]} exd5 {[%emt 0:00:00]} 5. Bg2 {[%emt 0:00:07]} Qe7+ {[%emt 0:00:00]} 6. Kf1 {[%emt 0:00:34]} Nc6 {[%emt 0:00:05]} 7. Nc3 {[%emt 0:00:18]} d4 {[%emt 0:00:31]} 8. Nd5 {[%emt 0:00:06]} Qd8 {[%emt 0:00:04]} 9. Nf4 {[%emt 0:00:48]} Bd6 {[%emt 0:00:35]} 10. d3 {[%emt 0:00:52]} Nf6 {[%emt 0:00:03]} 11. Qe2+ {[%emt 0:00:06]} Ne7 {[%emt 0:00:04]} 12. Bd2 {[%emt 0:00:42]} O-O {[%emt 0:00:03]} 13. Re1 {[%emt 0:00:05]} Re8 {[%emt 0:00:25]} 14. Qd1 {[%emt 0:00:12]} Bd7 {[%emt 0:00:58]} 15. h3 {[%emt 0:01:20]} Qc7 {[%emt 0:00:36]} 16. Kg1 {[%emt 0:00:20]} Bc6 {[%emt 0:01:14]} 17. Kh2 {[%emt 0:00:14]} h6 {[%emt 0:00:10]} 18. Rhf1 {[%emt 0:01:14]} b6 {[%emt 0:00:52]} 19. Ng1 {[%emt 0:01:27]} Bxf4 {[%emt 0:02:02]} 20. Bxf4 {[%emt 0:00:02]} Qb7 {[%emt 0:00:01]} 21. Bxc6 {[%emt 0:00:12]} Qxc6 {[%emt 0:00:04]} 22. Nf3 {[%emt 0:01:49]} Ng6 {[%emt 0:00:05]} 23. Ne5 {[%emt 0:00:37]} Nxe5 {[%emt 0:00:19]} 24. Bxe5 {[%emt 0:00:02]} Nd5 {[%emt 0:00:23]} 25. Qg4 {[%emt 0:00:44]} Qg6 {[%emt 0:01:28]} 26. Qf3 {[%emt 0:00:52]} Rad8 {[%emt 0:00:07]} 27. Bf4 {[%emt 0:01:10]} Qf5 {[%emt 0:00:27]} 28. Kg2 {[%emt 0:00:15]} g5 {[%emt 0:01:39]} 29. Bd2 {[%emt 0:00:04]} Qxf3+ {[%emt 0:00:02]} 30. Kxf3 {[%emt 0:00:01]} Kg7 {[%emt 0:00:02]} 31. h4 {[%emt 0:00:20]} Kg6 {[%emt 0:00:04]} 32. hxg5 {[%emt 0:00:02]} hxg5 {[%emt 0:00:01]} 33. g4 {[%emt 0:00:15]} b5 {[%emt 0:00:52]} 34. a3 {[%emt 0:00:30]} Rc8 {[%emt 0:00:50]} 35. Rxe8 {[%emt 0:00:10]} Rxe8 {[%emt 0:00:01]} 36. b3 {[%emt 0:00:21]} Re6 {[%emt 0:00:36]} 37. Re1 {[%emt 0:00:14]} Rxe1 {[%emt 0:00:07]} 38. Bxe1 {[%emt 0:00:01]} f5 {[%emt 0:00:01]} 39. Ba5 {[%emt 0:00:28]} Nf6 {[%emt 0:00:40]} 40. gxf5+ {[%emt 0:00:06]} Kxf5 {[%emt 0:00:01]} 41. Bc7 {[%emt 0:00:23]} Nd7 {[%emt 0:00:58]} 42. Ke2 {[%emt 0:00:16]} g4 {[%emt 0:00:17]} 43. f3 {[%emt 0:00:03]} gxf3+ {[%emt 0:00:16]} 44. Kxf3 {[%emt 0:00:01]} Ke6 {[%emt 0:00:03]} 45. Bf4 {[%emt 0:00:15]} Kd5 {[%emt 0:00:04]} 46. Ke2 {[%emt 0:00:13]} a6 {[%emt 0:00:05]} 47. Bg3 {[%emt 0:00:21]} Nf8 {[%emt 0:00:31]} 48. Kd2 {[%emt 0:00:20]} Ne6 {[%emt 0:00:02]} 49. Bh4 {[%emt 0:00:06]} c4 {[%emt 0:00:11]} 50. bxc4+ {[%emt 0:00:18]} bxc4 {[%emt 0:00:02]} 51. dxc4+ {[%emt 0:00:52]} Kxc4 {[%emt 0:00:02]} 52. Bf6 {[%emt 0:00:05]} Nc5 {[%emt 0:00:05]} 53. Kc1 {[%emt 0:00:03]} a5 {[%emt 0:00:20]} 54. Bd8 {[%emt 0:00:04]} a4 {[%emt 0:00:02]} 55. Kb2 {[%emt 0:00:09]} Ne4 {[%emt 0:00:14]} 56. Bh4 {[%emt 0:00:12]} Kd5 {[%emt 0:00:20]} 57. Be1 {[%emt 0:00:04]} Nd6 {[%emt 0:00:02]} 58. Bb4 {[%emt 0:00:30]} Nc4+ {[%emt 0:00:02]} 59. Kc1 {[%emt 0:00:01]} Ke4 {[%emt 0:00:03]} 60. Bf8 {[%emt 0:00:04]} Ke3 {[%emt 0:00:15]} 61. Bh6+ {[%emt 0:00:01]} Ke2 {[%emt 0:00:09]} 62. Bg7 {[%emt 0:00:05]} Ke3 {[%emt 0:00:05]} 63. Bh6+ {[%emt 0:00:02]} Ke4 {[%emt 0:00:01]} 64. Bf8 {[%emt 0:00:01]} Ne3 {[%emt 0:00:09]} 65. Bh6 {[%emt 0:00:13]} Nf5 {[%emt 0:00:09]} 66. Bf8 {[%emt 0:00:06]} Ke3 {[%emt 0:00:03]} 67. Bc5 {[%emt 0:00:08]} Ke2 {[%emt 0:00:10]} 68. Bb6 {[%emt 0:00:03]} Kf3 {[%emt 0:00:06]} 69. Kd2 {[%emt 0:00:13]} Ke4 {[%emt 0:00:01]} 70. Kc1 {[%emt 0:00:06]} Ne3 {[%emt 0:00:16]} 71. Bc5 {[%emt 0:00:11]} Kd5 {[%emt 0:00:23]} 72. Bf8 {[%emt 0:00:04]} Kc4 {[%emt 0:00:03]} 73. Kd2 {[%emt 0:00:35]} Nf1+ {[%emt 0:00:04]} 74. Kc1 {[%emt 0:00:01]} Ng3 {[%emt 0:00:02]} 75. Kb2 {[%emt 0:00:05]} Ne2 {[%emt 0:00:08]} 76. Bg7 {[%emt 0:00:08]} Kd5 {[%emt 0:00:05]} 77. Bf6 {[%emt 0:00:12]} Ke4 {[%emt 0:00:04]} 78. Bg7 {[%emt 0:00:06]} Nc3 {[%emt 0:00:25]} 79. Bf6 {[%emt 0:00:10]} Nd5 {[%emt 0:00:19]} 80. Bg7 {[%emt 0:00:02]} Nb6 {[%emt 0:00:08]} 81. Bf8 {[%emt 0:00:07]} Ke3 {[%emt 0:00:08]} 82. Bc5 {[%emt 0:00:22]} Nc4+ {[%emt 0:00:11]} 83. Kc1 {[%emt 0:00:02]} Ne5 {[%emt 0:00:07]} 84. Bf8 {[%emt 0:00:06]} Ke2 {[%emt 0:00:28]} 85. Bg7 {[%emt 0:00:08]} Nf3 {[%emt 0:00:08]} 86. Bf6 {[%emt 0:00:31]} Ke1 {[%emt 0:00:09]} 87. Bg7 {[%emt 0:00:15]} Ng1 {[%emt 0:00:05]} 88. Kb2 {[%emt 0:00:35]} Ne2 {[%emt 0:00:03]} 89. Bxd4 {[%emt 0:00:31]} Nxd4 {[%emt 0:00:02]} 90. Kc3 {[%emt 0:00:01]} Nc6 {[%emt 0:00:02]} 91. Kc4 {[%emt 0:00:04]} Kd2 {[%emt 0:00:03]} 92. Kb5 {[%emt 0:00:01]} Kxc2 {[%emt 0:00:04]} 93. Kxa4 {[%emt 0:00:03]} Kb2 {[%emt 0:00:04]} 94. Kb5 {[%emt 0:00:02]} Kxa3 1/2-1/2

[Event "RUS-ch Rapid Men 2018"]
[Site "Sochi"]
[Date "2018.10.06"]
[Round "11"]
[White "Usmanov, Vasily"]
[Black "Remizov, Yaroslav"]
[Result "1/2-1/2"]
[ECO "D30"]
[WhiteElo "2453"]
[BlackElo "2315"]
[Annotator "ChessBase"]
[PlyCount "84"]
[EventDate "2018.10.05"]
[EventType "swiss"]
[EventCountry "RUS"]
[SourceTitle "playchess.com"]
[Source "ChessBase"]
[SourceQuality "1"]
[TimeControl "900+10"]

1. d4 {[%emt 0:00:00]} d5 {[%emt 0:00:00]} 2. c4 {[%emt 0:00:00]} e6 {[%emt 0:00:00]} 3. Nf3 {[%emt 0:00:00]} c6 {[%emt 0:00:00]} 4. Bg5 {[%emt 0:00:09]} f6 {[%emt 0:00:47]} 5. Bf4 {[%emt 0:00:17]} Bd6 {[%emt 0:00:51]} 6. Bxd6 {[%emt 0:00:08]} Qxd6 {[%emt 0:00:01]} 7. e3 {[%emt 0:00:05]} Ne7 {[%emt 0:00:11]} 8. Nc3 {[%emt 0:00:01]} Nd7 {[%emt 0:02:32]} 9. Be2 {[%emt 0:01:41]} O-O {[%emt 0:01:32]} 10. O-O {[%emt 0:00:02]} f5 {[%emt 0:00:32]} 11. Rb1 {[%emt 0:01:49]} Nf6 {[%emt 0:01:33]} 12. b4 {[%emt 0:00:05]} Ne4 {[%emt 0:00:08]} 13. c5 {[%emt 0:00:23]} Qc7 {[%emt 0:00:26]} 14. Nxe4 {[%emt 0:00:25]} fxe4 {[%emt 0:00:35]} 15. Ne5 {[%emt 0:00:02]} b5 {[%emt 0:00:33]} 16. a4 {[%emt 0:00:05]} a6 {[%emt 0:00:10]} 17. f3 {[%emt 0:00:12]} Bd7 {[%emt 0:00:38]} 18. Ra1 {[%emt 0:02:32]} exf3 {[%emt 0:04:05]} 19. Bxf3 {[%emt 0:00:12]} Ng6 {[%emt 0:00:43]} 20. Nxg6 {[%emt 0:00:11]} hxg6 {[%emt 0:00:00]} 21. e4 {[%emt 0:01:33]} Qf4 {[%emt 0:00:40]} 22. Qd3 {[%emt 0:00:56]} bxa4 {[%emt 0:01:00]} 23. exd5 {[%emt 0:00:50]} cxd5 {[%emt 0:00:13]} 24. Bxd5 {[%emt 0:00:49]} Qxf1+ {[%emt 0:00:02]} 25. Rxf1 {[%emt 0:00:04]} Rxf1+ {[%emt 0:00:01]} 26. Kxf1 {[%emt 0:00:43]} exd5 {[%emt 0:00:01]} 27. Ke1 {[%emt 0:01:11]} Bb5 {[%emt 0:00:44]} 28. Qf3 {[%emt 0:00:56]} Re8+ {[%emt 0:00:32]} 29. Kd2 {[%emt 0:00:02]} Re4 {[%emt 0:00:39]} 30. Kc3 {[%emt 0:00:05]} a3 {[%emt 0:00:02]} 31. c6 {[%emt 0:03:21]} a2 {[%emt 0:00:05]} 32. Kb2 {[%emt 0:00:05]} Re2+ {[%emt 0:00:10]} 33. Ka1 {[%emt 0:00:02]} Bc4 {[%emt 0:00:13]} 34. Qg3 {[%emt 0:00:53]} Rc2 {[%emt 0:00:37]} 35. Qg5 {[%emt 0:00:08]} Rf2 {[%emt 0:00:17]} 36. Qd8+ {[%emt 0:00:12]} Kf7 {[%emt 0:00:04]} 37. Qd7+ {[%emt 0:00:07]} Kf8 {[%emt 0:00:15]} 38. Qd6+ {[%emt 0:00:15]} Kf7 {[%emt 0:00:05]} 39. Qc7+ {[%emt 0:00:10]} Kf8 {[%emt 0:00:08]} 40. Qc8+ {[%emt 0:00:34]} Kf7 {[%emt 0:00:03]} 41. Qd7+ {[%emt 0:00:02]} Kf8 {[%emt 0:00:01]} 42. Qd6+ {[%emt 0:00:03]} Kf7 {[%emt 0:00:02]} 1/2-1/2

[Event "RUS-ch Rapid Men 2018"]
[Site "Sochi"]
[Date "2018.10.06"]
[Round "11"]
[White "Drygalov, Sergey"]
[Black "Avalyan, Artur"]
[Result "1-0"]
[ECO "D37"]
[WhiteElo "2446"]
[BlackElo "2347"]
[Annotator "NA"]
[PlyCount "94"]
[EventDate "2018.10.05"]
[EventType "swiss"]
[EventCountry "RUS"]
[SourceTitle "playchess.com"]
[Source "ChessBase"]
[SourceQuality "1"]
[TimeControl "900+10"]

1. d4 {[%emt 0:00:00]} Nf6 {[%emt 0:00:00]} 2. Nf3 {[%emt 0:00:00]} d5 {[%emt 0:00:00]} 3. c4 {[%emt 0:00:00]} e6 {[%emt 0:00:00]} 4. Nc3 {[%emt 0:00:00]} Be7 {[%emt 0:00:00]} 5. Bf4 {[%emt 0:00:00]} O-O {[%emt 0:00:04]} 6. e3 {[%emt 0:00:01]} b6 {[%emt 0:00:06]} 7. Bd3 {[%emt 0:00:25]} dxc4 {[%emt 0:00:06]} 8. Bxc4 {[%emt 0:00:01]} Nd5 {[%emt 0:00:25]} 9. Bg3 {[%emt 0:00:23]} Bb7 {[%emt 0:00:09]} 10. O-O {[%emt 0:00:09]} Nxc3 {[%emt 0:00:21]} 11. bxc3 {[%emt 0:00:02]} Bd6 {[%emt 0:00:10]} 12. Ne5 {[%emt 0:02:05]} Nd7 {[%emt 0:00:14]} 13. f4 {[%emt 0:00:02]} Nf6 {[%emt 0:04:24]} 14. f5 {[%emt 0:01:08]} exf5 {[%emt 0:01:46]} 15. Rxf5 {[%emt 0:00:47]} Be4 {[%emt 0:03:10]} 16. Rf2 {[%emt 0:02:54]} Qe7 {[%emt 0:00:32]} 17. Qe2 {[%emt 0:01:42]} Bd5 {[%emt 0:02:27]} 18. Bxd5 {[%emt 0:02:28]} Nxd5 {[%emt 0:00:01]} 19. c4 {[%emt 0:00:02]} Bxe5 {[%emt 0:00:38]} 20. Bxe5 {[%emt 0:02:15]} f6 {[%emt 0:00:03]} 21. Bf4 {[%emt 0:00:01]} Nxf4 {[%emt 0:00:35]} 22. Rxf4 {[%emt 0:00:17]} Rfe8 {[%emt 0:00:02]} 23. Re1 {[%emt 0:00:36]} Rad8 {[%emt 0:00:05]} 24. h4 {[%emt 0:01:19]} Rd6 {[%emt 0:00:40]} 25. Qd2 {[%emt 0:01:07]} Re6 {[%emt 0:00:06]} 26. e4 {[%emt 0:00:13]} Rd8 {[%emt 0:00:21]} 27. d5 {[%emt 0:00:52]} Re5 {[%emt 0:00:29]} 28. Qf2 {[%emt 0:00:33]} Re8 {[%emt 0:00:11]} 29. Re3 {[%emt 0:00:02]} Qc5 {[%emt 0:00:09]} 30. Re2 {[%emt 0:00:18]} Qxc4 {[%emt 0:01:05]} 31. Rc2 {[%emt 0:00:01]} Qd3 {[%emt 0:00:01]} 32. Rxc7 {[%emt 0:00:06]} Rxe4 {[%emt 0:00:01]} 33. Rxe4 {[%emt 0:00:16]} Rxe4 {[%emt 0:00:02]} 34. Rd7 {[%emt 0:00:20]} Qd1+ {[%emt 0:00:41]} 35. Kh2 {[%emt 0:00:07]} Qa4 {[%emt 0:01:06]} 36. Rd8+ {[%emt 0:00:09]} Kf7 {[%emt 0:00:01]} 37. Kh3 {[%emt 0:00:04]} Qa3+ {[%emt 0:00:19]} 38. g3 {[%emt 0:00:09]} Qe7 {[%emt 0:00:27]} 39. Rh8 {[%emt 0:00:10]} Qd7+ {[%emt 0:00:05]} 40. Kh2 {[%emt 0:00:03]} Qxd5 {[%emt 0:00:05]} 41. Rc8 {[%emt 0:00:05]} Qe5 {[%emt 0:00:09]} 42. Rc2 {[%emt 0:00:16]} h5 {[%emt 0:00:14]} 43. Kg2 {[%emt 0:00:10]} Qd5 {[%emt 0:00:24]} 44. Kh2 {[%emt 0:00:04]} Rc4 {[%emt 0:00:11]} 45. Rd2 {[%emt 0:00:03]} Qe5 {[%emt 0:00:06]} 46. Rd7+ {[%emt 0:00:12]} Kg6 {[%emt 0:00:04]} 47. Qd2 {[%emt 0:00:23]} Rxh4+ {[%emt 0:00:06]} 1-0

[Event "RUS-ch Rapid Men 2018"]
[Site "Sochi"]
[Date "2018.10.06"]
[Round "11"]
[White "Pogromsky, Mikhail"]
[Black "Sakaev, Konstantin"]
[Result "1-0"]
[ECO "D01"]
[WhiteElo "2415"]
[BlackElo "2584"]
[Annotator "ChessBase"]
[PlyCount "100"]
[EventDate "2018.10.05"]
[EventType "swiss"]
[EventCountry "RUS"]
[SourceTitle "playchess.com"]
[Source "ChessBase"]
[SourceQuality "1"]
[TimeControl "900+10"]

1. d4 {[%emt 0:00:08]} Nf6 {[%emt 0:00:00]} 2. Nc3 {[%emt 0:00:01]} d5 {[%emt 0:00:00]} 3. Bg5 {[%emt 0:00:01]} Nbd7 {[%emt 0:00:02]} 4. Nf3 {[%emt 0:00:05]} h6 {[%emt 0:02:32]} 5. Bh4 {[%emt 0:00:05]} e6 {[%emt 0:00:03]} 6. e3 {[%emt 0:00:49]} Be7 {[%emt 0:00:17]} 7. Be2 {[%emt 0:00:08]} c5 {[%emt 0:00:16]} 8. O-O {[%emt 0:00:16]} a6 {[%emt 0:00:12]} 9. a4 {[%emt 0:00:31]} b6 {[%emt 0:00:23]} 10. Ne5 {[%emt 0:00:31]} Nxe5 {[%emt 0:01:34]} 11. dxe5 {[%emt 0:00:02]} Nd7 {[%emt 0:00:04]} 12. Bxe7 {[%emt 0:00:35]} Qxe7 {[%emt 0:00:01]} 13. f4 {[%emt 0:00:02]} Bb7 {[%emt 0:00:02]} 14. Bf3 {[%emt 0:00:22]} O-O {[%emt 0:00:06]} 15. e4 {[%emt 0:01:07]} d4 {[%emt 0:00:05]} 16. Ne2 {[%emt 0:00:01]} Rfd8 {[%emt 0:00:35]} 17. Qe1 {[%emt 0:00:11]} Nf8 {[%emt 0:01:40]} 18. Rd1 {[%emt 0:00:31]} Ng6 {[%emt 0:00:32]} 19. g3 {[%emt 0:00:56]} Rd7 {[%emt 0:00:32]} 20. Qf2 {[%emt 0:01:05]} Rad8 {[%emt 0:00:07]} 21. Rd3 {[%emt 0:00:21]} Qe8 {[%emt 0:02:45]} 22. Rfd1 {[%emt 0:02:55]} Ne7 {[%emt 0:00:28]} 23. c3 {[%emt 0:01:00]} dxc3 {[%emt 0:00:20]} 24. Rxd7 {[%emt 0:00:02]} Rxd7 {[%emt 0:00:03]} 25. Rxd7 {[%emt 0:00:01]} Qxd7 {[%emt 0:00:02]} 26. Nxc3 {[%emt 0:00:02]} Nc6 {[%emt 0:00:05]} 27. Qe3 {[%emt 0:01:42]} Nd4 {[%emt 0:00:18]} 28. Bg2 {[%emt 0:00:28]} Bc6 {[%emt 0:01:52]} 29. Qd3 {[%emt 0:00:37]} b5 {[%emt 0:00:13]} 30. axb5 {[%emt 0:00:01]} axb5 {[%emt 0:00:05]} 31. Kf2 {[%emt 0:00:41]} b4 {[%emt 0:00:10]} 32. Nd1 {[%emt 0:00:02]} Bb5 {[%emt 0:00:15]} 33. Qd2 {[%emt 0:00:01]} Qa7 {[%emt 0:00:21]} 34. Ne3 {[%emt 0:00:30]} Qa1 {[%emt 0:00:18]} 35. f5 {[%emt 0:00:15]} Qb1 {[%emt 0:00:29]} 36. f6 {[%emt 0:00:08]} Qd3 {[%emt 0:00:39]} 37. Qxd3 {[%emt 0:01:57]} Bxd3 {[%emt 0:00:02]} 38. fxg7 {[%emt 0:00:02]} Kxg7 {[%emt 0:00:54]} 39. Bf1 {[%emt 0:01:19]} Bxe4 {[%emt 0:00:08]} 40. Nc4 {[%emt 0:00:04]} Bd5 {[%emt 0:00:58]} 41. Nb6 {[%emt 0:00:11]} Nc6 {[%emt 0:00:20]} 42. Nd7 {[%emt 0:00:04]} c4 {[%emt 0:00:52]} 43. Ke3 {[%emt 0:00:08]} Kg6 {[%emt 0:00:09]} 44. h4 {[%emt 0:00:08]} h5 {[%emt 0:00:22]} 45. Be2 {[%emt 0:00:43]} Ne7 {[%emt 0:00:09]} 46. Kf4 {[%emt 0:00:34]} Bc6 {[%emt 0:00:29]} 47. Nb8 {[%emt 0:00:19]} Nd5+ {[%emt 0:00:27]} 48. Kf3 {[%emt 0:00:17]} Bb7 {[%emt 0:00:22]} 49. Kf2 {[%emt 0:00:09]} Nb6 {[%emt 0:00:11]} 50. Ke3 {[%emt 0:00:05]} b3 {[%emt 0:00:31]} 1-0